Cogmind - Beta 14 @@@ ROGUE MODE // 2025.03.25 @ 17:11:24 Player: Lava Result: Destroyed by as-44229 with Assembled Heavy Rifle Performance ------------- Evolutions (1) 500 Regions Visited (4) 800 Robots Destroyed (70) 350 Value Destroyed (1629) 1629 Prototype IDs (1) 20 Alien Tech Used (0) 0 Bonus (-65) -65 TOTAL SCORE: 3234 Bonus ------- High Alert Combat Kills 40 Follower Combat Kills 14 Friendly Fire -119 Cogmind --------- Core Integrity 0/400 Matter 51/300 Energy 100/100 System Corruption 0% Temperature Cool (0) Movement Walking (260) Ox2 Location -9/Mines Parts ------- > --- POWER (1) -------- (None) > --- PROPULSION (2) --- Aluminum Leg > --- UTILITY (4) ------ Large Storage Unit Signal Interpreter Targeting Computer System Shield > --- WEAPON (2) ------- Heavy Assault Rifle Flak Cannon > --- INVENTORY (15) --- Light Nuclear Core Visual Processing Unit Medium Armor Plating System Shield Improved Assault Rifle Heavy Hammer Peak State ------------ > --- POWER ------------ Light Nuclear Core > --- PROPULSION ------- Light Treads Light Treads > --- UTILITY ---------- Large Storage Unit Sensor Array Targeting Computer System Shield > --- WEAPON ----------- Makeshift Shrapnel Gun Flak Cannon > --- INVENTORY -------- Ion Engine Ion Engine Light Treads Aluminum Leg Aluminum Leg Visual Processing Unit Medium Armor Plating System Shield Assault Rifle Light Assault Rifle Heavy Assault Rifle Flak Cannon Grenade Launcher Rocket Launcher Heavy Hammer [Rating: 20] Favorites ----------- Power Ion Engine Engine Ion Engine Power Core Light Nuclear Core Propulsion Light Treads Treads Light Treads Leg Aluminum Leg Utility Targeting Computer Device Sensor Array Storage Large Storage Unit Processor Targeting Computer Hackware System Shield Protection Medium Armor Plating Weapon Light Assault Rifle Ballistic Gun Light Assault Rifle Ballistic Cannon Flak Cannon Launcher Rocket Launcher Build | -11 -10 -10 -9 -9 ------- Run | Yrd Mat Min Mat Min Slots Evolved 2 | . . . 2 . Power . | . . . . . Propulsion . | . . . . . Utility 2 | . . . 2 . Weapon . | . . . . . Parts Attached 38 | 6 8 2 13 9 Power 4 | 1 . 1 1 1 Engine 2 | 1 . 1 . . Core 2 | . . . 1 1 Reactor . | . . . . . Propulsion 12 | 2 3 . 5 2 Treads 11 | 2 3 . 5 1 Leg 1 | . . . . 1 Wheel . | . . . . . Hover . | . . . . . Flight . | . . . . . Utility 8 | 1 3 . 4 . Device 1 | . . . 1 . Storage 3 | 1 2 . . . Processor 2 | . 1 . 1 . Hackware 1 | . . . 1 . Protection 1 | . . . 1 . Artifact . | . . . . . Weapon 14 | 2 2 1 3 6 Energy Gun . | . . . . . Energy Cannon . | . . . . . Ballistic Gun 9 | 2 2 1 2 2 Ballistic Cannon 3 | . . . 1 2 Launcher 2 | . . . . 2 Special Weapon . | . . . . . Impact Weapon . | . . . . . Slashing Weapon . | . . . . . Piercing Weapon . | . . . . . Special Melee Weapon . | . . . . . Unidentified Prototypes 1 | . . . 1 . Parts Lost 13 | . . 1 3 9 Power 3 | . . 1 . 2 Propulsion 5 | . . . 2 3 Utility 1 | . . . 1 . Weapon 4 | . . . . 4 Highest Loss Streak 9 | . . 1 2 9 To Critical Strikes 1 | . . . . 1 Average Slot Usage (%) 98 | . 96 99 99 94 Engine 9 | . 14 13 4 . Core 3 | . . . 6 9 Treads 24 | . 27 28 22 17 Device 3 | . . . 7 . Storage 12 | . 14 14 11 11 Processor 12 | . 10 14 11 22 Hackware 5 | . . . 10 11 Protection 1 | . . . 2 . Ballistic Gun 20 | . 27 28 11 10 Ballistic Cannon 4 | . . . 10 10 Peak Build Rating 20 | 6 8 9 20 19 Average Rating 12 | 4 7 8 19 17 On Entrance 8 | . 6 8 9 19 Naked Turns . | . . . . . Heaviest Build 40 | 11 26 28 40 34 Greatest Support 40 | 40 40 40 40 40 Greatest Overweight (x) 3 | . . . . 3 Average Overweight (x) . | . . . . . Largest Inventory Capacity 15 | 8 15 15 15 15 Average Capacity 13 | 7 10 15 15 15 Most Carried 15 | 6 11 15 15 13 Average Carried 12 | 4 8 14 14 11 Final Capacity 15 | 8 15 15 15 15 Final Carried 15 | 6 11 15 13 6 Class Distribution -------------------- 100% | Mutant Dominant Class ---------------- Mutant | -10/Materials Mutant | -10/Mines Mutant | -9/Materials Mutant | -9/Mines Resources | -11 -10 -10 -9 -9 ----------- Run | Yrd Mat Min Mat Min Matter Collected 1460 | 175 333 114 634 204 Remotely . | . . . . . Salvage Created 1820 | . 445 231 871 273 Parts 133 | . 34 19 65 15 Haulers Intercepted 1 | . 1 . . . Recyclers Shooed 4 | . 2 . 2 . Parts Field Recycled . | . . . . . Retrieved Matter . | . . . . . Parts Self-Destructed . | . . . . . Prevented . | . . . . . Kills | -11 -10 -10 -9 -9 ------- Run | Yrd Mat Min Mat Min Combat Hostiles Destroyed 57 | . 14 6 27 10 Guns 43 | . 14 6 18 5 Cannons 14 | . . . 9 5 Classes Destroyed 11 | . 5 . 3 3 Worker 2 | . . . 2 . Tunneler 1 | . . . . 1 Hauler 1 | . 1 . . . Recycler 1 | . . . 1 . Operator 3 | . 1 . 2 . Watcher 6 | . 1 . 5 . Swarmer 24 | . 9 2 10 3 Grunt 23 | . 5 4 11 3 Sentry 7 | . . . 7 . Demolisher 2 | . . . . 2 Assembled 2 | . . . . 2 Best Kill Streak 7 | . 4 2 7 5 Combat Bots Only 5 | . 4 2 5 4 Max Kills in Single Turn 2 | . 1 1 2 1 Gunslinging . | . . . . . Exploded . | . . . . . Melee . | . . . . . Uniques/NPCs Destroyed . | . . . . . Combat | -11 -10 -10 -9 -9 -------- Run | Yrd Mat Min Mat Min Hostile Shots Fired 247 | . 56 31 94 66 Missed 61 | . 10 11 26 14 Damage Taken 2864 | . 452 232 856 1324 Core 497 | . 67 11 130 289 Absorbed by Shields . | . . . . . Regen/Repaired (Parts) 219 | . 219 . . . Core Remaining (%) 84 | 100 . 68 . . Volleys Fired 159 | . 50 19 65 25 Largest 2 | . 2 2 2 2 Hottest 88 | . 40 40 68 88 Shots Fired 317 | . 100 38 129 50 Gun 224 | . 100 38 64 22 Cannon 88 | . . . 65 23 Launcher 5 | . . . . 5 Special . | . . . . . Kinetic 312 | . 100 38 129 45 Thermal . | . . . . . Explosive 5 | . . . . 5 Electromagnetic . | . . . . . Robot Hit Streak 11 | . 11 8 10 5 Robot Miss Streak 10 | . 10 2 10 6 Penetration Max . | . . . . . Secondary Targets 4 | . 2 2 . . Max Gunslinging Chain 1 | . 1 1 . . Shots Hit Robots 198 | . 50 27 91 30 Core Hits 161 | . 30 13 84 34 Critical Kills . | . . . . . Critical Parts Destroyed 1 | . . . 1 . Critical Strikes 1 | . . . 1 . Destroy 1 | . . . 1 . Melee Attacks . | . . . . . Impact . | . . . . . Slashing . | . . . . . Piercing . | . . . . . Sneak Attacks . | . . . . . Combat Hostiles . | . . . . . Follow-up Attacks . | . . . . . Damage Inflicted 3280 | . 590 277 1879 534 Guns 1945 | . 578 273 868 226 Cannons 1168 | . . . 913 255 Explosions 135 | . . . 85 50 Melee . | . . . . . Ramming 32 | . 12 4 13 3 Kinetic 3113 | . 578 273 1781 481 Thermal . | . . . . . Explosive 135 | . . . 85 50 Electromagnetic . | . . . . . Impact . | . . . . . Slashing . | . . . . . Piercing . | . . . . . Highest Corruption . | . . . . . Average Corruption . | . . . . . Corruption Purged . | . . . . . Corruption Blocked . | . . . . . Overload Shots . | . . . . . Overflow Damage 44 | . . . 39 5 Projectiles 5 | . . . . 5 Explosions 39 | . . . 39 . Melee . | . . . . . Knockbacks 21 | . . . 16 5 Impact . | . . . . . Kinetic 20 | . . . 15 5 Secondary 1 | . . . 1 . Self-Inflicted Damage 143 | . . . 101 42 Shots 3 | . . . 1 2 Rammed 6 | . 3 1 1 1 Targets Rammed 6 | . 3 1 1 1 Kicked . | . . . . . Crushed . | . . . . . Highest Temperature 57 | . 6 21 57 30 Average Temperature 11 | . 6 9 11 10 Received Heat Transfer 411 | . 36 105 222 48 Siege Activations . | . . . . . Robots Corrupted . | . . . . . Combat Hostiles . | . . . . . Parts Fried . | . . . . . Impact Corruptions . | . . . . . Robots Melted . | . . . . . Combat Hostiles . | . . . . . Parts Melted . | . . . . . Heat Transferred . | . . . . . Parts Sabotaged . | . . . . . Parts Stolen . | . . . . . Parts Stripped . | . . . . . Power Chain Reactions . | . . . . . Alert | -11 -10 -10 -9 -9 ------- Run | Yrd Mat Min Mat Min Peak Influence 490 | . 326 221 490 284 Initial 122 | . . 76 . 122 Average 216 | . 190 62 345 240 Maximum Alert Level 2 | . 1 1 2 1 Low Security (%) 47 | 100 57 96 8 33 Level 1 37 | . 42 3 53 66 Level 2 14 | . . . 38 . Level 3 . | . . . . . Level 4 . | . . . . . Level 5 . | . . . . . High Security . | . . . . . Max Security . | . . . . . Squads Dispatched 6 | . 2 . 4 . Investigation 3 | . 1 . 2 . Extermination . | . . . . . Reinforcement 3 | . 1 . 2 . Assault . | . . . . . Garrison . | . . . . . Intercept . | . . . . . Searches Triggered . | . . . . . Construction Impeded . | . . . . . Haulers Reinforced . | . . . . . Active Scanning Responses . | . . . . . Cargo Convoy Interrupts . | . . . . . Stealth | -11 -10 -10 -9 -9 --------- Run | Yrd Mat Min Mat Min Distress Signals 5 | . 2 . 3 . Communications Jammed . | . . . . . Distress Signals . | . . . . . Times Spotted 92 | . 29 7 42 14 Peak Tracking Total 8 | . 6 3 8 4 Tactical Retreats 7 | . 5 . 1 1 Traps | -11 -10 -10 -9 -9 ------- Run | Yrd Mat Min Mat Min Traps Triggered 3 | . 3 . . . Indirectly . | . . . . . Trap Hack Attempts . | . . . . . Triggered . | . . . . . Disarmed 12 | . 6 . 6 . Reprogrammed . | . . . . . Reused . | . . . . . Traps Extracted . | . . . . . Installed . | . . . . . Triggered . | . . . . . Machines | -11 -10 -10 -9 -9 ---------- Run | Yrd Mat Min Mat Min Machines Disabled 2 | . . . 2 . Max in Single Turn 2 | . . . 2 . Machines Repaired . | . . . . . Machines Dismantled . | . . . . . Machines Sabotaged . | . . . . . Overloaded Fab Kills . | . . . . . Hacking | -11 -10 -10 -9 -9 --------- Run | Yrd Mat Min Mat Min Machines Accessed 15 | . 8 . 7 . Terminals 13 | . 7 . 6 . Fabricators . | . . . . . Repair Stations 1 | . 1 . . . Recycling Units . | . . . . . Scanalyzers 1 | . . . 1 . Garrison Access . | . . . . . Total Hacks 54 | . 28 . 26 . Successful 25 | . 15 . 10 . Failed 29 | . 13 . 16 . Catastrophic 4 | . 2 . 2 . Database Lockouts . | . . . . . Manual 39 | . 19 . 20 . Terminals 45 | . 24 . 21 . Fabricators . | . . . . . Repair Stations 4 | . 4 . . . Recycling Units . | . . . . . Scanalyzers 5 | . . . 5 . Garrison Access . | . . . . . Terminal Hacks 16 | . 11 . 5 . Branch Access Points 1 | . 1 . . . Terminal Index 3 | . 1 . 2 . Alert Level 2 | . 2 . . . Unreport Threat 1 | . . . 1 . Disarm Traps 5 | . 4 . 1 . Recall Reinforcements 1 | . . . 1 . Hauler Manifests 2 | . 2 . . . Zone Layout 1 | . 1 . . . Fabricator Hacks . | . . . . . Repair Station Hacks 4 | . 4 . . . Scan Component 2 | . 2 . . . Repair 2 | . 2 . . . Recycling Unit Hacks . | . . . . . Scanalyzer 5 | . . . 5 . Insert Component 2 | . . . 2 . Analyze 3 | . . . 3 . Garrison Access Hacks . | . . . . . Unauthorized Hacks . | . . . . . Terminals . | . . . . . Fabricators . | . . . . . Repair Stations . | . . . . . Recycling Units . | . . . . . Scanalyzers . | . . . . . Garrison Access . | . . . . . Data Cores Recovered . | . . . . . Used . | . . . . . Hacking Detections 13 | . 7 . 6 . Full Trace Events 5 | . 2 . 3 . Feedback Events . | . . . . . Feedback Blocked . | . . . . . Robot Schematics Acquired . | . . . . . Robots Built . | . . . . . Authchips . | . . . . . Time . | . . . . . Total Robot Build Rating . | . . . . . Part Schematics Acquired 2 | . . . 2 . Parts Built . | . . . . . Authchips . | . . . . . Time . | . . . . . Total Part Build Rating . | . . . . . Parts Repaired 2 | . 2 . . . Time 52 | . 52 . . . Parts Recycled . | . . . . . Recycled Matter . | . . . . . Retrieved Matter . | . . . . . Retrieved Components . | . . . . . Parts Scanalyzed 2 | . . . 2 . Part Schematics Acquired 2 | . . . 2 . Parts Damaged . | . . . . . Bothacking | -11 -10 -10 -9 -9 ------------ Run | Yrd Mat Min Mat Min Used RIF Installer . | . . . . . Robots Hacked . | . . . . . Non-combat . | . . . . . Combat . | . . . . . Robot Hacks Applied . | . . . . . Relay Couplers Released . | . . . . . Fabnet Peak Effective % . | . . . . . Robots Rewired . | . . . . . Allies Hacked . | . . . . . Hacks Repelled . | . . . . . Allies | -11 -10 -10 -9 -9 -------- Run | Yrd Mat Min Mat Min Total Allies 3 | . . 3 . . Largest Group 3 | . . 3 3 . Highest-Rated Group 40 | . . 40 40 . Highest-Rated Ally 16 | . . 16 16 . Total Orders . | . . . . . Ally Attacks 20 | . . . 20 . Total Damage 115 | . . . 115 . Kills 3 | . . . 3 . Allies Corrupted . | . . . . . Allies Melted . | . . . . . Intel | -11 -10 -10 -9 -9 ------- Run | Yrd Mat Min Mat Min Robot Analysis Total . | . . . . . Derelict Logs Recovered 2 | . . 2 . . Drone Launches . | . . . . . Drone Recoveries . | . . . . . Exploration | -11 -10 -10 -9 -9 ------------- Run | Yrd Mat Min Mat Min Turns Passed 4315 | 81 1127 1153 1689 265 Spaces Moved 2264 | 52 540 675 896 101 Core 16 | 16 . . . . Treads 2242 | 36 540 675 896 95 Legs 6 | . . . . 6 Wheels . | . . . . . Hover . | . . . . . Flight . | . . . . . Fastest Speed 50 | 50 160 160 160 160 Average Speed 159 | 126 160 160 160 166 Slowest Speed 330 | 160 160 160 160 330 Overloaded Moves . | . . . . . Propulsion Burnouts . | . . . . . Robots Hopped . | . . . . . Cave-ins Triggered . | . . . . . Exploration Rate (%) 58 | 4 98 96 70 23 Regions Visited 4 Branch Regions 2 Pre-discovered Areas 1 | . . 1 . . Known Exits Taken 2 | . 1 . 1 . Unknown Exits Taken 2 | 1 . 1 . . Scrap Searched 1 | . . 1 . . Spaces Dug . | . . . . . Terrain Destroyed 49 | . . . 30 19 Melee . | . . . . . Projectile . | . . . . . AOE 49 | . . . 30 19 Terrain Rammed . | . . . . . Walls Destroyed . | . . . . . Machines Disabled . | . . . . . Actions | -11 -10 -10 -9 -9 --------- Run | Yrd Mat Min Mat Min Total 2667 | 67 712 713 1029 146 Wait 144 | . 93 10 31 10 Move 2260 | 51 539 674 895 101 Hop . | . . . . . Pick Up 41 | 10 14 6 11 . Fast Attach 4 | 2 . . 2 . Attach 20 | 4 3 1 5 7 Detach . | . . . . . Swap 14 | . 5 1 6 2 Drop 19 | . 5 1 13 . Fire 159 | . 50 19 65 25 Melee . | . . . . . Ram . | . . . . . Kick . | . . . . . Crush 6 | . 3 1 1 1 Escape Stasis . | . . . . . Rewire . | . . . . . Trap . | . . . . . Miscellaneous . | . . . . . Route ------- -11/Scrapyard -10/Materials (discovered 4 exits: *Mat x3 / *Min) -10/Mines (discovered 2 exits: *Mat x2) -9/Materials (discovered 3 exits: *Mat x2 / *Min) -9/Mines (discovered 1 exit: *Mat) History --------- Turn | Location | Event 8 | -11/Scrapyard | Discovered new exit (range 15) 82 | -11/Scrapyard | Entered Materials 307 | -10/Materials | Discovered new exit (range 16) 310 | -10/Materials | Build established: Mutant 429 | -10/Materials | Identified exit to Mines 703 | -10/Materials | Repaired Lgt. Treads 732 | -10/Materials | Repaired Lgt. Treads 799 | -10/Materials | Discovered new exit (range 15) 1097 | -10/Materials | Discovered new exit (range 5) 1209 | -10/Materials | Entered Mines 1259 | -10/Mines | Learned Materials terminal intel 1454 | -10/Mines | Discovered new exit (range 12) 1577 | -10/Mines | Received a Rocket Launcher from a helpful Derelict 1687 | -10/Mines | Learned location of Zion (-7) 1794 | -10/Mines | A weapon hastily lodged in a ceiling crevice suddenly fell to the ground 1902 | -10/Mines | Assisted by bots powering up and referring to "LRC-V3" 1958 | -10/Mines | Discovered new exit (range 10) 2362 | -10/Mines | Entered Materials 2362 | -9/Materials | Accompanied by 3 allies 2362 | -9/Materials | Evolved 2 slots: Utility x2 2363 | -9/Materials | Loaded intel: 12 terminal locations 3073 | -9/Materials | Discovered new exit (range 16) 3280 | -9/Materials | Discovered new exit (range 5) 4024 | -9/Materials | Discovered new exit (range 9) 4048 | -9/Materials | Identified exit to Mines 4051 | -9/Materials | Entered Mines 4084 | -9/Mines | Discovered new exit (range 7) 4094 | -9/Mines | Identified exit to Materials 4228 | -9/Mines | Assembled infested the area 4260 | -9/Mines | Core integrity fell below 50% 4264 | -9/Mines | Core integrity fell below 20% 4316 | -9/Mines | Destroyed by as-44229 with Assembled Heavy Rifle Last Messages --------------- 04297_ U-05 Engineer lays Concrete. 04297_ as-37101 destroyed. 04298_ K-01 Serf collects debris. 04298_ U-05 Engineer lays Concrete. 04300_ The unstable cave ceiling collapses. 04300_ U-05 Engineer builds a Wall. 04301_ K-01 Serf collects debris. 04303_ U-05 Engineer lays Concrete. 04305_ The unstable cave ceiling collapses. 04305_ K-01 Serf collects debris. 04305_ U-05 Engineer lays Concrete. 04306_ The unstable cave ceiling collapses. 04306_ U-05 Engineer lays Concrete. 04309_ The unstable cave ceiling collapses. 04309_ U-05 Engineer lays Concrete. 04312_ The unstable cave ceiling collapses. 04312_ K-01 Serf collects debris. 04312_ U-05 Engineer lays Concrete. 04315_ K-01 Serf collects debris. 04316_ U-05 Engineer lays Concrete. Map ----- +----------------------------------------------------+ | ???????????????????????## #????????? | | ????????????????????????## ##????????? | | ?????????????????????????# ####?????????? | | ??????????????????????#### ##???????????? | | ?????????????????????## #???????????? | | ????????????????????## #???????????? | | ??????????????????### ## #???????????? | | ??????????????????# < ## #???????????? | | ?????????????????# ### #???????????? | | ?????????????????# ##?# #???????????? | | ?????????????????## #??# #???????????? | | ??????????????????## #??# #???????????? | | ???????????????????## #### #???????????? | | ????????????????????#### != #???????????? | | ???????????????????????#! #########?????? | | ???????????????#####???# *### u ##????? | | ????????????????$ ??# [## ##???? | | ????????????????? ###=% k #???? | | ?????????????????## # | = #???? | | ?????????????????# # %! #???? | | ???????????????### = ! [ ##???? | | ???????????????# ####????? | | ???????????????# ##???????? | | ??????????????## u ###????????? | | ?????????????## % ###??????????? | | ????????????## % @## #??????????? | | ???????????## ###????????? | | ??????????# # ##???????? | | ?????????? # ####??????? | | ????????? # # ###?????? | | ?????????? #% / #?????? | | ??????????? # a #?????? | | ???????????# # #?# ### #?????? | | ??????????????#???## # # ##????? | | ???????????????????###### # # #????? | | ????????????????????????### #????? | | ?????????????????????????#### #????? | | ????????????????????????????# #????? | | ????????????????????????????## #????? | | ?????????????????????????????# ##????? | | ??????????????????????" #?????? | | ??????????????????? # ### ##?????? | | ?????????????????? ???#???####??????? | | ?????????????????=#?????????????????????? | | ????????????????????????????????????????? | | ????????????????????????????????????????? | | ????????????????????????????????????????? | | ????????????????????????????????????????? | | ????????????????????????????????????????? | | ????????????????????????????????????????? | +----------------------------------------------------+ Best States ------------- Heat Dissipation 28 Energy Generation 14 Energy Capacity 250 Matter Stores 300 Matter Capacity 300 Sight Range 16 Robot Scan Range 14 Terrain Scan Density 10 Armor Coverage 225 Evasion (%) 50 Targeting Accuracy 5 Recoil Reduction 2 Defensive Hacking 10 Item Schematics ----------------- System Shield | -9/Materials | Scanalyzed Rocket Launcher | -9/Materials | Scanalyzed Robot Schematics ------------------ None Fabricated ------------ Nothing Alien Tech Used ----------------- None Achievements -------------- None Challenges ------------ None Game ------ Seed PrecisionGammaSpear Manual? 0 Play Time 00:25:31 Cumulative 36.0 hours Start 2025.03.25 @ 16:48:15 End 2025.03.25 @ 17:11:24 Sessions 1 Manual Loads 0 Difficulty Rogue Special Mode None Game No. 64 Rogue 64 Adventurer 0 Explorer 0 Win Type - Total 0 Types 0/0/0/0/0/0/0/0/0 Lore% 13 Gallery% 26 Achievement% 29 Wizard Run 0 Options --------- Layout 1 ASCII 0 Keyboard 0 Movement Mouse Keybinds 0 Fullscreen 1 Font 32/SmallcapsGlow Map View 50x40 Zoom Use 0% Tactical HUD 1 Map Filters NONE Filters NONE Steam 1 RUN: 8684c55a-de39-4412-820d-60dbb1ff6276